[Event "Mistrovství Čech mládeže 2023 - HD16"]
[Site "Harrachov, Czech Republic"]
[Date "2023.10.23"]
[Round "3.17"]
[White "Dudarec, Elias"]
[Black "Mrázek, Adam"]
[Result "1/2-1/2"]
[TimeControl "90m + 30s"]
[WhiteElo "1535"]
[BlackElo "1669"]

1. e4 {[%clk 01:30:58]} {[%emt 00:00:02]} c5 {[%clk 01:30:48]} {[%emt
00:00:13]} 2. Nf3 {[%clk 01:31:22]} {[%emt 00:00:05]} Nc6 {[%clk 01:31:05]}
{[%emt 00:00:13]} 3. d4 {[%clk 01:31:46]} {[%emt 00:00:06]} cxd4 {[%clk
01:31:20]} {[%emt 00:00:15]} 4. Nxd4 {[%clk 01:32:03]} {[%emt 00:00:12]} Nf6
{[%clk 01:31:23]} {[%emt 00:00:28]} 5. Nc3 {[%clk 01:32:27]} {[%emt 00:00:06]}
e5 {[%clk 01:31:01]} {[%emt 00:00:52]} 6. Nxc6 {[%clk 01:32:51]} {[%emt
00:00:06]} bxc6 {[%clk 01:30:21]} {[%emt 00:01:10]} 7. Bd3 {[%clk 01:33:15]}
{[%emt 00:00:06]} Bc5 {[%clk 01:24:56]} {[%emt 00:05:55]} 8. O-O {[%clk
01:32:58]} {[%emt 00:00:46]} O-O {[%clk 01:24:49]} {[%emt 00:00:38]} 9. Kh1
{[%clk 01:30:26]} {[%emt 00:03:02]} d5 {[%clk 01:15:12]} {[%emt 00:10:07]} 10.
Bg5 {[%clk 01:29:18]} {[%emt 00:01:37]} Be6 {[%clk 01:07:49]} {[%emt 00:07:54]}
11. Qe1 {[%clk 01:24:57]} {[%emt 00:04:51]} h6 {[%clk 00:56:59]} {[%emt
00:11:20]} 12. Bh4 {[%clk 01:17:38]} {[%emt 00:07:48]} g5 {[%clk 00:55:21]}
{[%emt 00:02:09]} 13. Bg3 {[%clk 01:18:00]} {[%emt 00:00:08]} d4 {[%clk
00:55:31]} {[%emt 00:00:20]} 14. Ne2 {[%clk 01:17:01]} {[%emt 00:01:28]} Bd6
{[%clk 00:53:44]} {[%emt 00:02:18]} 15. Nxd4 {[%clk 01:07:28]} {[%emt
00:10:03]} exd4 {[%clk 00:30:48]} {[%emt 00:23:26]} 16. Bxd6 {[%clk 01:07:00]}
{[%emt 00:00:57]} Qxd6 {[%clk 00:30:43]} {[%emt 00:00:36]} 17. e5 {[%clk
01:07:14]} {[%emt 00:00:17]} Qd7 {[%clk 00:26:07]} {[%emt 00:05:05]} 18. exf6
{[%clk 01:06:06]} {[%emt 00:01:37]} Bf5 {[%clk 00:23:39]} {[%emt 00:02:58]} 19.
Qd2 {[%clk 01:04:12]} {[%emt 00:02:25]} Bxd3 {[%clk 00:21:41]} {[%emt
00:02:28]} 20. Qxd3 {[%clk 01:04:28]} {[%emt 00:00:14]} Rfe8 {[%clk 00:17:38]}
{[%emt 00:04:33]} 21. Rae1 {[%clk 00:57:01]} {[%emt 00:07:57]} Qg4 {[%clk
00:05:04]} {[%emt 00:13:03]} 22. f3 {[%clk 00:50:01]} {[%emt 00:07:31]} Qf4
{[%clk 00:04:51]} {[%emt 00:00:43]} 23. Re4 {[%clk 00:48:16]} {[%emt 00:02:14]}
Rxe4 {[%clk 00:02:13]} {[%emt 00:03:08]} 24. fxe4 {[%clk 00:48:40]} {[%emt
00:00:06]} Qe3 {[%clk 00:00:38]} {[%emt 00:02:05]} 25. Qxe3 {[%clk 00:45:39]}
{[%emt 00:03:31]} dxe3 {[%clk 00:01:03]} {[%emt 00:00:06]} 26. Re1 {[%clk
00:24:50]} {[%emt 00:21:18]} Rd8 {[%clk 00:00:38]} {[%emt 00:00:54]} 27. h3
{[%clk 00:24:09]} {[%emt 00:01:11]} Rd2 {[%clk 00:00:58]} {[%emt 00:00:12]} 28.
Rxe3 {[%clk 00:24:32]} {[%emt 00:00:07]} Rxc2 {[%clk 00:01:17]} {[%emt
00:00:11]} 29. Ra3 {[%clk 00:22:05]} {[%emt 00:02:57]} Rxb2 {[%clk 00:01:07]}
{[%emt 00:00:40]} 30. Rxa7 {[%clk 00:22:27]} {[%emt 00:00:08]} c5 {[%clk
00:01:01]} {[%emt 00:00:36]} 31. a4 {[%clk 00:19:52]} {[%emt 00:03:06]} Ra2
{[%clk 00:00:40]} {[%emt 00:00:50]} 32. Kh2 {[%clk 00:18:35]} {[%emt 00:01:46]}
c4 {[%clk 00:00:55]} {[%emt 00:00:16]} 33. e5 {[%clk 00:16:29]} {[%emt
00:02:36]} c3 {[%clk 00:01:02]} {[%emt 00:00:23]} 34. Rc7 {[%clk 00:16:05]}
{[%emt 00:00:54]} Rxa4 {[%clk 00:01:03]} {[%emt 00:00:29]} 35. Rxc3 {[%clk
00:16:24]} {[%emt 00:00:11]} Re4 {[%clk 00:01:18]} {[%emt 00:00:15]} 36. Rc8+
{[%clk 00:15:28]} {[%emt 00:01:26]} Kh7 {[%clk 00:01:42]} {[%emt 00:00:06]} 37.
Re8 {[%clk 00:15:42]} {[%emt 00:00:16]} h5 {[%clk 00:00:37]} {[%emt 00:01:35]}
38. Re7 {[%clk 00:04:56]} {[%emt 00:11:15]} Kg6 {[%clk 00:00:51]} {[%emt
00:00:16]} 39. Kg3 {[%clk 00:04:10]} {[%emt 00:01:17]} Re3+ {[%clk 00:00:36]}
{[%emt 00:00:46]} 40. Kf2 {[%clk 00:04:05]} {[%emt 00:00:33]} Re4 {[%clk
00:01:05]} {[%emt 00:00:02]} 41. Kf3 {[%clk 00:03:46]} {[%emt 00:00:49]} Re1
{[%clk 00:01:24]} {[%emt 00:00:11]} 42. g4 {[%clk 00:03:15]} {[%emt 00:01:01]}
h4 {[%clk 00:00:40]} {[%emt 00:01:13]} 43. Re8 {[%clk 00:02:41]} {[%emt
00:01:04]} Ra1 {[%clk 00:00:32]} {[%emt 00:00:38]} 44. Rg8+ {[%clk 00:02:05]}
{[%emt 00:01:06]} Kh6 {[%clk 00:00:59]} {[%emt 00:00:04]} 45. Rh8+ {[%clk
00:02:00]} {[%emt 00:00:35]} Kg6 {[%clk 00:01:22]} {[%emt 00:00:06]} 46. Rg8+
{[%clk 00:02:11]} {[%emt 00:00:18]} Kh6 {[%clk 00:01:49]} {[%emt 00:00:04]} 47.
Rh8+ {[%clk 00:02:33]} {[%emt 00:00:08]} Kg6 {[%clk 00:02:16]} {[%emt
00:00:04]} 48. Rd8 {[%clk 00:02:49]} {[%emt 00:00:14]} Ra3+ {[%clk 00:00:40]}
{[%emt 00:02:06]} 49. Kg2 {[%clk 00:03:08]} {[%emt 00:00:10]} Ra2+ {[%clk
00:00:44]} {[%emt 00:00:27]} 50. Kg1 {[%clk 00:01:45]} {[%emt 00:01:53]} Ra1+
{[%clk 00:00:41]} {[%emt 00:00:32]} 51. Kf2 {[%clk 00:01:35]} {[%emt 00:00:40]}
Ra2+ {[%clk 00:00:34]} {[%emt 00:00:38]} 52. Ke1 {[%clk 00:01:32]} {[%emt
00:00:33]} Ra3 {[%clk 00:00:42]} {[%emt 00:00:22]} 53. Rg8+ {[%clk 00:01:57]}
{[%emt 00:00:05]} Kh6 {[%clk 00:01:04]} {[%emt 00:00:08]} 54. e6 {[%clk
00:02:12]} {[%emt 00:00:15]} Re3+ {[%clk 00:01:09]} {[%emt 00:00:25]} 55. Kf2
{[%clk 00:01:47]} {[%emt 00:00:55]} Rxe6 {[%clk 00:01:32]} {[%emt 00:00:07]} 56.
Kf3 {[%clk 00:01:00]} {[%emt 00:01:17]} Rxf6+ {[%clk 00:01:47]} {[%emt
00:00:14]} 57. Ke4 {[%clk 00:01:01]} {[%emt 00:00:29]} Rf4+ {[%clk 00:01:38]}
{[%emt 00:00:40]} 58. Ke3 {[%clk 00:00:35]} {[%emt 00:00:56]} Ra4 {[%clk
00:01:45]} {[%emt 00:00:23]} 59. Kf2 {[%clk 00:00:42]} {[%emt 00:00:22]} Ra2+
{[%clk 00:00:44]} {[%emt 00:01:32]} 60. Kg1 {[%clk 00:00:49]} {[%emt 00:00:23]}
Ra5 {[%clk 00:00:41]} {[%emt 00:00:32]} 61. Rb8 {[%clk 00:00:41]} {[%emt
00:00:38]} Kg7 {[%clk 00:00:49]} {[%emt 00:00:23]} 62. Rb3 {[%clk 00:00:46]}
{[%emt 00:00:24]} Ra2 {[%clk 00:00:43]} {[%emt 00:00:36]} 63. Rb6 {[%clk
00:00:40]} {[%emt 00:00:36]} Re2 {[%clk 00:00:50]} {[%emt 00:00:24]} 64. Kf1
{[%clk 00:00:41]} {[%emt 00:00:29]} Re6 {[%clk 00:01:03]} {[%emt 00:00:16]} 65.
Rb5 {[%clk 00:01:01]} {[%emt 00:00:10]} Kf6 {[%clk 00:01:16]} {[%emt 00:00:17]}
66. Rf5+ {[%clk 00:01:24]} {[%emt 00:00:07]} Kg6 {[%clk 00:01:45]} 67. Rb5
{[%clk 00:01:37]} {[%emt 00:00:16]} Re3 {[%clk 00:00:37]} {[%emt 00:01:39]} 68.
Kg2 {[%clk 00:01:54]} {[%emt 00:00:14]} Re4 {[%clk 00:00:32]} {[%emt 00:00:35]}
69. Rf5 {[%clk 00:01:31]} {[%emt 00:00:53]} Ra4 {[%clk 00:00:34]} {[%emt
00:00:27]} 70. Kf2 {[%clk 00:01:05]} {[%emt 00:00:56]} f6 {[%clk 00:00:37]}
{[%emt 00:00:28]} 71. Kg2 {[%clk 00:00:58]} {[%emt 00:00:37]} Kf7 {[%clk
00:00:57]} {[%emt 00:00:10]} 72. Kf3 {[%clk 00:00:47]} {[%emt 00:00:41]} Ke6
{[%clk 00:01:13]} {[%emt 00:00:14]} 73. Kg2 {[%clk 00:00:37]} {[%emt 00:00:40]}
Rd4 {[%clk 00:00:46]} {[%emt 00:00:56]} 74. Ra5 {[%clk 00:00:37]} {[%emt
00:00:30]} Rd5 {[%clk 00:01:01]} {[%emt 00:00:15]} 75. Rxd5 {[%clk 00:00:34]}
{[%emt 00:00:33]} Kxd5 {[%clk 00:01:23]} {[%emt 00:00:08]} 76. Kf1 {[%clk
00:00:37]} {[%emt 00:00:27]} Ke5 {[%clk 00:00:47]} {[%emt 00:01:06]} 77. Ke1
{[%clk 00:00:33]} {[%emt 00:00:34]} f5 {[%clk 00:00:34]} {[%emt 00:00:44]} 78.
gxf5 {[%clk 00:00:54]} {[%emt 00:00:09]} Kxf5 {[%clk 00:00:58]} {[%emt
00:00:06]} 79. Kf1 {[%clk 00:01:15]} {[%emt 00:00:09]} Ke5 {[%clk 00:00:49]}
{[%emt 00:00:39]} 80. Ke1 {[%clk 00:01:28]} {[%emt 00:00:17]} Kd5 {[%clk
00:00:37]} {[%emt 00:00:42]} 81. Kf1 {[%clk 00:01:26]} {[%emt 00:00:31]} Kd4
{[%clk 00:00:33]} {[%emt 00:00:35]} 82. Kf2 {[%clk 00:01:41]} {[%emt 00:00:14]}
Ke4 {[%clk 00:00:38]} {[%emt 00:00:25]} 83. Ke2 {[%clk 00:02:00]} {[%emt
00:00:10]} Kf4 {[%clk 00:00:38]} {[%emt 00:00:32]} 84. Kf2 {[%clk 00:02:18]}
{[%emt 00:00:11]} Kf5 {[%clk 00:00:37]} {[%emt 00:00:31]} 85. Kf3 {[%clk
00:02:30]} {[%emt 00:00:18]} Ke5 {[%clk 00:00:51]} {[%emt 00:00:17]} 86. Ke3
{[%clk 00:02:39]} {[%emt 00:00:20]} g4 {[%clk 00:00:42]} {[%emt 00:00:40]} 87.
hxg4 {[%clk 00:03:00]} {[%emt 00:00:09]} h3 {[%clk 00:01:11]} 88. Kf3 {[%clk
00:03:16]} {[%emt 00:00:14]} h2 {[%clk 00:01:37]} {[%emt 00:00:03]} 89. Kg2
{[%clk 00:03:43]} {[%emt 00:00:04]} Kf4 {[%clk 00:02:04]} {[%emt 00:00:03]} 90.
Kxh2 {[%clk 00:04:07]} {[%emt 00:00:06]} Kxg4 {[%clk 00:02:30]} {[%emt
00:00:04]} 1/2-1/2

[Event "Mistrovství Čech mládeže 2023 - HD16"]
[Site "Harrachov, Czech Republic"]
[Date "2023.10.23"]
[Round "3.18"]
[White "Vlček, Vojtěch"]
[Black "Archlebová, Stela"]
[Result "1-0"]
[TimeControl "90m + 30s"]
[WhiteElo "1661"]
[BlackElo "1381"]

1. d4 {[%clk 01:30:51]} {[%emt 00:00:07]} d5 {[%clk 01:29:56]} {[%emt
00:01:04]} 2. c4 {[%clk 01:31:08]} {[%emt 00:00:13]} c6 {[%clk 01:30:03]}
{[%emt 00:00:24]} 3. Nf3 {[%clk 01:31:29]} {[%emt 00:00:08]} Nf6 {[%clk
01:30:05]} {[%emt 00:00:27]} 4. Nc3 {[%clk 01:31:20]} {[%emt 00:00:41]} Bf5
{[%clk 01:29:21]} {[%emt 00:01:14]} 5. cxd5 {[%clk 01:31:38]} {[%emt 00:00:13]}
cxd5 {[%clk 01:29:34]} {[%emt 00:00:16]} 6. Qb3 {[%clk 01:31:54]} {[%emt
00:00:14]} Qc8 {[%clk 01:15:30]} {[%emt 00:14:33]} 7. Nxd5 {[%clk 01:05:22]}
{[%emt 00:27:03]} Nxd5 {[%clk 01:15:48]} {[%emt 00:00:11]} 8. Qxd5 {[%clk
01:05:47]} {[%emt 00:00:05]} e6 {[%clk 01:16:08]} {[%emt 00:00:10]} 9. Qb5+
{[%clk 01:05:40]} {[%emt 00:00:35]} Nc6 {[%clk 01:16:04]} {[%emt 00:00:35]} 10.
Bd2 {[%clk 01:04:22]} {[%emt 00:01:49]} Qd7 {[%clk 01:14:54]} {[%emt 00:01:37]}
11. e3 {[%emt 00:13:40]} Be7 {[%clk 01:07:08]} {[%emt 00:00:22]} 12. Be2 {[%clk
00:55:39]} {[%emt 00:04:00]} O-O {[%clk 01:06:54]} {[%emt 00:00:45]} 13. O-O
{[%clk 00:56:03]} {[%emt 00:00:04]} Rfd8 {[%clk 01:06:49]} {[%emt 00:00:30]} 14.
Rac1 {[%clk 00:45:24]} {[%emt 00:11:14]} Be4 {[%clk 01:06:03]} {[%emt
00:01:17]} 15. Rfd1 {[%clk 00:39:03]} {[%emt 00:06:52]} a6 {[%clk 00:57:09]}
{[%emt 00:09:24]} 16. Qb3 {[%clk 00:36:26]} {[%emt 00:03:06]} Rac8 {[%clk
00:57:09]} {[%emt 00:00:29]} 17. Bc3 {[%clk 00:32:57]} {[%emt 00:03:59]} Bd5
{[%clk 00:56:02]} {[%emt 00:01:38]} 18. Bc4 {[%clk 00:21:46]} {[%emt 00:11:42]}
Bxc4 {[%clk 00:53:02]} {[%emt 00:03:30]} 19. Qxc4 {[%clk 00:20:07]} {[%emt
00:02:09]} Bf6 {[%clk 00:50:31]} {[%emt 00:03:00]} 20. Qe2 {[%clk 00:19:22]}
{[%emt 00:01:15]} Ne7 {[%clk 00:48:47]} {[%emt 00:02:14]} 21. e4 {[%clk
00:12:55]} {[%emt 00:06:58]} Nc6 {[%clk 00:47:28]} {[%emt 00:01:48]} 22. Qe3
{[%clk 00:12:47]} {[%emt 00:00:39]} Qc7 {[%clk 00:45:10]} {[%emt 00:02:45]} 23.
d5 {[%clk 00:10:34]} {[%emt 00:02:45]} exd5 {[%clk 00:43:08]} {[%emt 00:02:32]}
24. exd5 {[%clk 00:10:50]} {[%emt 00:00:15]} Re8 {[%clk 00:42:59]} {[%emt
00:00:39]} 25. Qd2 {[%clk 00:09:41]} {[%emt 00:01:39]} Bxc3 {[%clk 00:39:41]}
{[%emt 00:03:47]} 26. Rxc3 {[%clk 00:08:48]} {[%emt 00:01:23]} Rcd8 {[%clk
00:39:34]} {[%emt 00:00:34]} 27. Qc1 {[%clk 00:07:53]} {[%emt 00:01:29]} Qd7
{[%clk 00:39:12]} {[%emt 00:00:52]} 28. a3 {[%clk 00:06:35]} {[%emt 00:01:48]}
Ne5 {[%clk 00:38:33]} {[%emt 00:01:09]} 29. Nxe5 {[%clk 00:06:09]} {[%emt
00:00:56]} Rxe5 {[%clk 00:38:57]} {[%emt 00:00:06]} 30. d6 {[%clk 00:06:36]}
{[%emt 00:00:02]} Qe6 {[%clk 00:38:33]} {[%emt 00:00:49]} 31. Rc7 {[%clk
00:03:27]} {[%emt 00:03:44]} Rd5 {[%clk 00:38:12]} {[%emt 00:00:47]} 32. d7
{[%clk 00:02:20]} {[%emt 00:01:43]} h6 {[%clk 00:35:54]} {[%emt 00:02:46]} 33.
Re1 {[%clk 00:02:33]} {[%emt 00:00:17]} Qd6 {[%clk 00:34:31]} {[%emt 00:01:54]}
34. Qc2 {[%clk 00:01:28]} {[%emt 00:01:33]} g6 {[%clk 00:33:57]} {[%emt
00:01:05]} 35. Rxb7 {[%clk 00:00:52]} {[%emt 00:01:07]} Rxd7 {[%clk 00:33:08]}
{[%emt 00:01:19]} 36. Rxd7 {[%clk 00:01:14]} {[%emt 00:00:08]} Qxd7 {[%clk
00:33:32]} {[%emt 00:00:05]} 37. h3 {[%clk 00:01:01]} {[%emt 00:00:42]} Rd2
{[%clk 00:29:45]} {[%emt 00:04:18]} 38. Qc3 {[%clk 00:00:47]} {[%emt 00:00:44]}
Qd6 {[%clk 00:29:51]} {[%emt 00:00:23]} 39. Re8+ {[%clk 00:01:10]} {[%emt
00:00:09]} Kh7 {[%clk 00:29:53]} {[%emt 00:00:27]} 40. Qh8# {[%clk 00:01:33]}
{[%emt 00:00:06]} 1-0

[Event "Mistrovství Čech mládeže 2023 - HD16"]
[Site "Harrachov, Czech Republic"]
[Date "2023.10.23"]
[Round "3.19"]
[White "Krupka, Aleš"]
[Black "Janoušková, Adéla"]
[Result "1-0"]
[TimeControl "90m + 30s"]
[WhiteElo "1444"]
[BlackElo "1638"]

1. e4 {[%clk 01:30:56]} {[%emt 00:00:03]} c5 {[%clk 01:30:48]} {[%emt
00:00:13]} 2. Nf3 {[%clk 01:31:19]} {[%emt 00:00:06]} d6 {[%clk 01:31:12]}
{[%emt 00:00:06]} 3. Bb5+ {[%clk 01:26:55]} {[%emt 00:04:54]} Bd7 {[%clk
01:29:55]} {[%emt 00:01:47]} 4. Bxd7+ {[%clk 01:25:40]} {[%emt 00:01:45]} Qxd7
{[%clk 01:29:06]} {[%emt 00:01:19]} 5. h3 {[%clk 01:22:45]} {[%emt 00:03:25]}
Nc6 {[%clk 01:27:32]} {[%emt 00:02:04]} 6. d3 {[%clk 01:19:12]} {[%emt
00:04:04]} g6 {[%clk 01:25:29]} {[%emt 00:02:32]} 7. c4 {[%clk 01:14:40]}
{[%emt 00:05:02]} Bg7 {[%clk 01:24:19]} {[%emt 00:01:40]} 8. Nc3 {[%clk
01:14:45]} {[%emt 00:00:25]} e6 {[%clk 01:23:29]} {[%emt 00:01:20]} 9. Bf4
{[%clk 01:10:11]} {[%emt 00:05:04]} a6 {[%clk 01:19:31]} {[%emt 00:04:29]} 10.
Rb1 {[%clk 01:05:34]} {[%emt 00:05:07]} Nge7 {[%clk 01:16:29]} {[%emt
00:03:31]} 11. O-O {[%clk 00:59:22]} {[%emt 00:06:41]} O-O {[%clk 01:15:57]}
{[%emt 00:01:03]} 12. Re1 {[%clk 00:58:37]} {[%emt 00:01:15]} Nd4 {[%clk
01:13:19]} {[%emt 00:03:08]} 13. a3 {[%clk 00:48:40]} {[%emt 00:10:27]} Nec6
{[%clk 01:12:35]} {[%emt 00:01:14]} 14. Nxd4 {[%clk 00:37:50]} {[%emt
00:11:19]} Nxd4 {[%clk 01:07:53]} {[%emt 00:05:12]} 15. Ne2 {[%clk 00:36:11]}
{[%emt 00:02:10]} e5 {[%clk 00:59:53]} {[%emt 00:08:31]} 16. Be3 {[%clk
00:34:57]} {[%emt 00:01:43]} f5 {[%clk 00:58:10]} {[%emt 00:02:13]} 17. Nc3
{[%clk 00:31:59]} {[%emt 00:03:28]} f4 {[%clk 00:53:36]} {[%emt 00:05:04]} 18.
Bxd4 {[%clk 00:30:54]} {[%emt 00:01:35]} cxd4 {[%clk 00:52:35]} {[%emt
00:01:31]} 19. Nd5 {[%clk 00:31:06]} {[%emt 00:00:18]} Rad8 {[%clk 00:43:20]}
{[%emt 00:09:45]} 20. f3 {[%clk 00:22:56]} {[%emt 00:08:39]} Bf6 {[%clk
00:40:24]} {[%emt 00:03:27]} 21. Qc2 {[%clk 00:16:33]} {[%emt 00:06:53]} Bh4
{[%clk 00:39:41]} {[%emt 00:01:12]} 22. Red1 {[%clk 00:15:52]} {[%emt
00:01:12]} h5 {[%clk 00:37:36]} {[%emt 00:02:34]} 23. Kf1 {[%clk 00:14:55]}
{[%emt 00:01:28]} g5 {[%clk 00:37:31]} {[%emt 00:00:35]} 24. Ke2 {[%clk
00:13:39]} {[%emt 00:01:45]} g4 {[%clk 00:35:19]} {[%emt 00:02:43]} 25. hxg4
{[%clk 00:13:40]} {[%emt 00:00:29]} hxg4 {[%clk 00:35:42]} {[%emt 00:00:06]} 26.
Rh1 {[%clk 00:11:56]} {[%emt 00:02:10]} Bg3 {[%clk 00:34:30]} {[%emt 00:01:46]}
27. Rh5 {[%clk 00:07:43]} {[%emt 00:04:30]} Qg7 {[%clk 00:32:20]} {[%emt
00:02:53]} 28. Rbh1 {[%clk 00:05:22]} {[%emt 00:02:51]} Rf7 {[%clk 00:29:35]}
{[%emt 00:03:15]} 29. c5 {[%clk 00:03:29]} {[%emt 00:02:24]} Rc8 {[%clk
00:26:05]} {[%emt 00:03:59]} 30. Qb3 {[%clk 00:03:16]} {[%emt 00:00:43]} Rxc5
{[%clk 00:24:17]} {[%emt 00:02:19]} 31. Ne7+ {[%clk 00:01:21]} {[%emt
00:02:25]} Kf8 {[%clk 00:24:26]} {[%emt 00:00:22]} 32. Nf5 {[%clk 00:01:36]}
{[%emt 00:00:14]} Rxf5 {[%clk 00:23:28]} {[%emt 00:01:27]} 33. Rxf5+ {[%clk
00:02:00]} {[%emt 00:00:07]} Ke8 {[%clk 00:23:30]} {[%emt 00:00:28]} 34. Qe6+
{[%clk 00:02:11]} {[%emt 00:00:19]} Kd8 {[%clk 00:23:39]} {[%emt 00:00:21]} 35.
Qxd6+ {[%clk 00:02:37]} {[%emt 00:00:04]} 1-0

[Event "Mistrovství Čech mládeže 2023 - HD16"]
[Site "Harrachov, Czech Republic"]
[Date "2023.10.23"]
[Round "3.20"]
[White "Hrubý, Filip"]
[Black "Dudková, Josefína"]
[Result "1-0"]
[TimeControl "90m + 30s"]
[WhiteElo "1386"]
[BlackElo "1587"]

1. e4 {[%clk 01:30:55]} {[%emt 00:25:12]} c5 {[%clk 01:30:50]} {[%emt
00:00:09]} 2. Nf3 {[%clk 01:31:16]} {[%emt 00:00:09]} Nc6 {[%clk 01:31:13]}
{[%emt 00:00:08]} 3. c3 {[%clk 01:31:31]} {[%emt 00:00:15]} g6 {[%clk
01:31:15]} {[%emt 00:00:28]} 4. d4 {[%clk 01:31:35]} {[%emt 00:00:26]} cxd4
{[%clk 01:31:35]} {[%emt 00:00:11]} 5. Nxd4 {[%clk 01:31:03]} {[%emt 00:01:01]}
Bg7 {[%clk 01:31:40]} {[%emt 00:00:24]} 6. Be3 {[%clk 01:29:41]} {[%emt
00:01:53]} Nf6 {[%clk 01:31:16]} {[%emt 00:00:54]} 7. Nxc6 {[%clk 01:29:10]}
{[%emt 00:01:02]} bxc6 {[%clk 01:26:16]} {[%emt 00:05:29]} 8. Nd2 {[%clk
01:28:34]} {[%emt 00:01:05]} O-O {[%clk 01:25:52]} {[%emt 00:00:55]} 9. Be2
{[%clk 01:27:44]} {[%emt 00:01:20]} d5 {[%clk 01:13:10]} {[%emt 00:13:12]} 10.
exd5 {[%clk 01:22:19]} {[%emt 00:05:55]} cxd5 {[%clk 01:11:12]} {[%emt
00:02:29]} 11. Nf3 {[%clk 01:20:01]} {[%emt 00:02:47]} Qc7 {[%clk 01:06:00]}
{[%emt 00:05:42]} 12. Bd4 {[%clk 01:18:48]} {[%emt 00:01:43]} Re8 {[%clk
00:46:11]} {[%emt 00:20:17]} 13. Bxf6 {[%clk 01:08:03]} {[%emt 00:11:17]} Bxf6
{[%clk 00:45:39]} {[%emt 00:01:02]} 14. O-O {[%clk 01:06:39]} {[%emt 00:01:54]}
Rb8 {[%clk 00:41:04]} {[%emt 00:05:05]} 15. Qd2 {[%clk 01:00:22]} {[%emt
00:06:47]} Qb7 {[%clk 00:38:04]} {[%emt 00:03:30]} 16. Rab1 {[%clk 00:57:38]}
{[%emt 00:03:14]} e5 {[%clk 00:37:53]} {[%emt 00:00:41]} 17. Bd1 {[%clk
00:55:56]} {[%emt 00:02:11]} Be6 {[%clk 00:33:08]} {[%emt 00:05:16]} 18. Bb3
{[%clk 00:52:04]} {[%emt 00:04:22]} d4 {[%clk 00:24:21]} {[%emt 00:09:17]} 19.
Bxe6 {[%clk 00:49:48]} {[%emt 00:02:46]} Rxe6 {[%clk 00:24:24]} {[%emt
00:00:27]} 20. cxd4 {[%clk 00:47:15]} {[%emt 00:03:03]} exd4 {[%clk 00:24:45]}
{[%emt 00:00:09]} 21. Rfd1 {[%clk 00:45:53]} {[%emt 00:01:52]} Rd8 {[%clk
00:21:19]} {[%emt 00:03:56]} 22. Qd3 {[%clk 00:44:20]} {[%emt 00:02:02]} Qd5
{[%clk 00:18:17]} {[%emt 00:03:33]} 23. a3 {[%clk 00:39:24]} {[%emt 00:05:26]}
Qe4 {[%clk 00:18:14]} {[%emt 00:00:33]} 24. Ne1 {[%clk 00:37:13]} {[%emt
00:02:41]} Qe2 {[%clk 00:16:00]} {[%emt 00:02:44]} 25. Qxe2 {[%clk 00:36:56]}
{[%emt 00:00:47]} Rxe2 {[%clk 00:16:28]} {[%emt 00:00:02]} 26. Nd3 {[%clk
00:37:18]} {[%emt 00:00:08]} Rb8 {[%clk 00:15:09]} {[%emt 00:01:48]} 27. Kf1
{[%clk 00:36:55]} {[%emt 00:00:52]} Rc2 {[%clk 00:14:28]} {[%emt 00:01:13]} 28.
Rbc1 {[%clk 00:35:22]} {[%emt 00:02:03]} Rbc8 {[%clk 00:13:58]} {[%emt
00:00:59]} 29. Rxc2 {[%clk 00:31:44]} {[%emt 00:04:08]} Rxc2 {[%clk 00:14:27]}
{[%emt 00:00:02]} 30. Ke1 {[%clk 00:31:32]} {[%emt 00:00:42]} Kf8 {[%clk
00:11:34]} {[%emt 00:03:23]} 31. Rc1 {[%clk 00:31:13]} {[%emt 00:00:49]} Rxc1+
{[%clk 00:10:12]} {[%emt 00:01:52]} 32. Nxc1 {[%clk 00:31:40]} {[%emt
00:00:02]} Ke7 {[%clk 00:10:13]} {[%emt 00:00:29]} 33. Ke2 {[%clk 00:31:54]}
{[%emt 00:00:16]} Kd6 {[%clk 00:07:50]} {[%emt 00:02:53]} 34. Kd3 {[%clk
00:32:03]} {[%emt 00:00:21]} Kd5 {[%clk 00:07:40]} {[%emt 00:00:41]} 35. b4
{[%clk 00:31:33]} {[%emt 00:01:00]} Bd8 {[%clk 00:04:17]} {[%emt 00:03:53]} 36.
Nb3 {[%clk 00:30:50]} {[%emt 00:01:13]} Bb6 {[%clk 00:04:01]} {[%emt 00:00:46]}
37. a4 {[%clk 00:30:29]} {[%emt 00:00:51]} a6 {[%clk 00:03:50]} {[%emt
00:00:42]} 38. a5 {[%clk 00:26:42]} {[%emt 00:04:16]} Ba7 {[%clk 00:03:51]}
{[%emt 00:00:29]} 39. f3 {[%clk 00:24:34]} {[%emt 00:02:37]} h5 {[%clk
00:02:48]} {[%emt 00:01:34]} 40. g4 {[%clk 00:22:43]} {[%emt 00:02:21]} hxg4
{[%clk 00:02:10]} {[%emt 00:01:07]} 41. fxg4 {[%clk 00:23:01]} {[%emt
00:00:12]} g5 {[%clk 00:01:50]} {[%emt 00:00:50]} 42. Nd2 {[%clk 00:18:59]}
{[%emt 00:04:33]} Ke5 {[%clk 00:01:02]} {[%emt 00:01:18]} 43. Nb3 {[%clk
00:18:28]} {[%emt 00:01:01]} Kd5 {[%clk 00:01:13]} {[%emt 00:00:19]} 44. Nd2
{[%clk 00:14:38]} {[%emt 00:04:19]} Ke5 {[%clk 00:01:39]} {[%emt 00:00:05]} 45.
Nf3+ {[%clk 00:14:15]} {[%emt 00:00:53]} Kf4 {[%clk 00:01:55]} {[%emt
00:00:14]} 46. Nxd4 {[%clk 00:14:30]} {[%emt 00:00:15]} Kxg4 {[%clk 00:01:50]}
{[%emt 00:00:35]} 47. Nc6 {[%clk 00:14:31]} {[%emt 00:00:29]} Bg1 {[%clk
00:01:35]} {[%emt 00:00:45]} 48. Nd4 {[%clk 00:09:04]} {[%emt 00:05:57]} Bxh2
{[%clk 00:01:02]} {[%emt 00:01:03]} 49. b5 {[%clk 00:09:23]} {[%emt 00:00:10]}
axb5 {[%clk 00:00:54]} {[%emt 00:00:39]} 50. a6 {[%clk 00:09:44]} {[%emt
00:00:09]} Bb8 {[%clk 00:00:45]} {[%emt 00:00:40]} 51. Nc6 {[%clk 00:10:08]}
{[%emt 00:00:05]} Ba7 {[%clk 00:00:37]} {[%emt 00:00:37]} 52. Nxa7 {[%clk
00:10:33]} {[%emt 00:00:06]} f5 {[%clk 00:00:45]} {[%emt 00:00:22]} 53. Nxb5
{[%clk 00:10:22]} {[%emt 00:00:41]} f4 {[%clk 00:01:06]} {[%emt 00:00:08]} 54.
a7 {[%clk 00:09:52]} {[%emt 00:01:01]} f3 {[%clk 00:01:18]} {[%emt 00:00:18]}
55. a8=Q {[%clk 00:10:13]} {[%emt 00:00:09]} Kg3 {[%clk 00:01:27]} {[%emt
00:00:20]} 56. Nd4 {[%clk 00:10:17]} {[%emt 00:00:26]} g4 {[%clk 00:01:33]}
{[%emt 00:00:24]} 57. Nxf3 {[%clk 00:10:32]} {[%emt 00:00:16]} gxf3 {[%clk
00:01:40]} {[%emt 00:00:22]} 58. Ke3 {[%clk 00:10:48]} {[%emt 00:00:14]} f2
{[%clk 00:00:44]} {[%emt 00:01:26]} 59. Qf3 {[%clk 00:10:53]} {[%emt 00:00:21]}
1-0